[Event "Late-Titled-Tuesday-Blitz-September-05-2023"]
[Site "Chess.com"]
[Date "2023.09.05"]
[Round "2"]
[White "SergioMoralesG"]
[Black "oskariot"]
[Result "1-0"]
[WhiteElo "2390"]
[BlackElo "2668"]
[TimeControl "180+1"]
[EndTime "14:18:06 PDT"]
[Termination "SergioMoralesG won on time"]

1. d4 {[%clk 0:03:00.9]} 1... Nf6 {[%clk 0:02:53.7]} 2. Bg5 {[%clk 0:02:59.1]}
2... Ng8 {[%clk 0:02:53.8]} 3. e4 {[%clk 0:02:57.6]} 3... c6 {[%clk 0:02:54.2]}
4. Nc3 {[%clk 0:02:51.7]} 4... d6 {[%clk 0:02:54.4]} 5. Bc4 {[%clk 0:02:47.2]}
5... h6 {[%clk 0:02:54.2]} 6. Bh4 {[%clk 0:02:45.6]} 6... g5 {[%clk 0:02:48]} 7.
Bg3 {[%clk 0:02:21]} 7... Bg7 {[%clk 0:02:47.3]} 8. f4 {[%clk 0:02:04.4]} 8...
Qb6 {[%clk 0:02:41]} 9. Nge2 {[%clk 0:01:57.2]} 9... Nd7 {[%clk 0:02:24.6]} 10.
fxg5 {[%clk 0:01:53.4]} 10... hxg5 {[%clk 0:02:24.7]} 11. O-O {[%clk 0:01:51.1]}
11... Ngf6 {[%clk 0:02:04]} 12. Qd2 {[%clk 0:01:41.8]} 12... Bh6 {[%clk
0:01:39]} 13. Kh1 {[%clk 0:01:36.2]} 13... e5 {[%clk 0:00:57.1]} 14. dxe5 {[%clk
0:01:23.7]} 14... dxe5 {[%clk 0:00:55.2]} 15. Qd6 {[%clk 0:01:17.2]} 15... Bf8
{[%clk 0:00:42.4]} 16. Qd2 {[%clk 0:01:01.2]} 16... Qc5 {[%clk 0:00:42]} 17. Bb3
{[%clk 0:00:56.5]} 17... Qe7 {[%clk 0:00:20.8]} 18. Rf5 {[%clk 0:00:53.9]} 18...
Nc5 {[%clk 0:00:09.2]} 19. Rxe5 {[%clk 0:00:53.3]} 19... Be6 {[%clk 0:00:09.8]}
20. Bxe6 {[%clk 0:00:35.5]} 20... Nxe6 {[%clk 0:00:10.4]} 21. Rf1 {[%clk
0:00:31.2]} 21... Nh5 {[%clk 0:00:06.9]} 22. Ref5 {[%clk 0:00:24.9]} 22... Rd8
{[%clk 0:00:03.4]} 23. Qe3 {[%clk 0:00:21.4]} 23... Nxg3+ {[%clk 0:00:03.8]} 24.
Nxg3 {[%clk 0:00:20.5]} 24... Nf4 {[%clk 0:00:04.2]} 25. e5 {[%clk 0:00:17.7]}
25... Bg7 {[%clk 0:00:03.7]} 26. Nce4 {[%clk 0:00:14.7]} 26... Bxe5 {[%clk
0:00:03.6]} 27. Nxg5 {[%clk 0:00:12.9]} 27... Nxg2 {[%clk 0:00:02.1]} 28. Kxg2
{[%clk 0:00:09.5]} 28... f6 {[%clk 0:00:02.5]} 29. Nf3 {[%clk 0:00:08.7]} 29...
Rd5 {[%clk 0:00:01.4]} 30. Nxe5 {[%clk 0:00:05.3]} 30... fxe5 {[%clk 0:00:01.9]}
31. Rf7 {[%clk 0:00:03.9]} 31... Qxf7 {[%clk 0:00:02.3]} 32. Rxf7 {[%clk
0:00:04]} 32... Kxf7 {[%clk 0:00:03.2]} 33. Qf3+ {[%clk 0:00:04.4]} 33... Ke6
{[%clk 0:00:03.4]} 34. Ne4 {[%clk 0:00:04.9]} 34... Rg8+ {[%clk 0:00:02.8]} 35.
Kf2 {[%clk 0:00:05]} 35... Rg6 {[%clk 0:00:02.7]} 36. Qh3+ {[%clk 0:00:03.9]}
36... Ke7 {[%clk 0:00:02.5]} 37. Qh7+ {[%clk 0:00:03.9]} 37... Ke6 {[%clk
0:00:01.5]} 38. Qxg6+ {[%clk 0:00:04.1]} 1-0

[Event "Late-Titled-Tuesday-Blitz-September-05-2023"]
[Site "Chess.com"]
[Date "2023.09.05"]
[Round "2"]
[White "leschebaza"]
[Black "pouya21"]
[Result "0-1"]
[WhiteElo "2392"]
[BlackElo "2797"]
[TimeControl "180+1"]
[EndTime "14:18:14 PDT"]
[Termination "pouya21 won on time"]

1. d4 {[%clk 0:02:58.8]} 1... d6 {[%clk 0:02:58.5]} 2. c4 {[%clk 0:02:58.7]}
2... e5 {[%clk 0:02:58]} 3. Nf3 {[%clk 0:02:56.1]} 3... e4 {[%clk 0:02:57.9]} 4.
Nfd2 {[%clk 0:02:56.2]} 4... f5 {[%clk 0:02:58.3]} 5. e3 {[%clk 0:02:56.1]} 5...
Nf6 {[%clk 0:02:58.1]} 6. Nc3 {[%clk 0:02:56.6]} 6... Be7 {[%clk 0:02:58.5]} 7.
Be2 {[%clk 0:02:56.9]} 7... O-O {[%clk 0:02:58.6]} 8. b4 {[%clk 0:02:57.3]} 8...
Be6 {[%clk 0:02:54.3]} 9. Nb3 {[%clk 0:02:55.9]} 9... Nbd7 {[%clk 0:02:52.9]}
10. d5 {[%clk 0:02:53.2]} 10... Bf7 {[%clk 0:02:51.4]} 11. Nd4 {[%clk
0:02:53.6]} 11... g6 {[%clk 0:02:47.4]} 12. f4 {[%clk 0:02:51.7]} 12... exf3
{[%clk 0:02:41.5]} 13. gxf3 {[%clk 0:02:52.6]} 13... Ne8 {[%clk 0:02:14.2]} 14.
f4 {[%clk 0:02:47.6]} 14... Bh4+ {[%clk 0:02:12.7]} 15. Kd2 {[%clk 0:02:47.2]}
15... Ng7 {[%clk 0:02:12]} 16. Bf3 {[%clk 0:02:35]} 16... a5 {[%clk 0:02:08.5]}
17. bxa5 {[%clk 0:02:24.7]} 17... Re8 {[%clk 0:02:04.7]} 18. Bb2 {[%clk
0:02:16.1]} 18... Nc5 {[%clk 0:01:58]} 19. Nb3 {[%clk 0:02:14.2]} 19... Qe7
{[%clk 0:01:44.6]} 20. Qe2 {[%clk 0:02:08.6]} 20... c6 {[%clk 0:01:29]} 21. dxc6
{[%clk 0:01:26.8]} 21... bxc6 {[%clk 0:01:28.8]} 22. Bxc6 {[%clk 0:01:26.4]}
22... Bf6 {[%clk 0:01:10.9]} 23. Nd5 {[%clk 0:00:47.8]} 23... Bxd5 {[%clk
0:01:04.9]} 24. Bxd5+ {[%clk 0:00:48.7]} 24... Kh8 {[%clk 0:01:02.5]} 25. Bxf6
{[%clk 0:00:39]} 25... Qxf6 {[%clk 0:01:03.4]} 26. Nxc5 {[%clk 0:00:33.9]} 26...
dxc5 {[%clk 0:00:34]} 27. Bxa8 {[%clk 0:00:25.4]} 27... Qb2+ {[%clk 0:00:31.2]}
28. Ke1 {[%clk 0:00:23.1]} 28... Qxa1+ {[%clk 0:00:30.8]} 29. Kf2 {[%clk
0:00:23.4]} 29... Qc3 {[%clk 0:00:28.9]} 30. Bb7 {[%clk 0:00:19.5]} 30... Qxa5
{[%clk 0:00:26.6]} 31. Rd1 {[%clk 0:00:19.3]} 31... Qc3 {[%clk 0:00:23.9]} 32.
Bc6 {[%clk 0:00:19.1]} 32... Rb8 {[%clk 0:00:22.7]} 33. Bb5 {[%clk 0:00:19.2]}
33... Nh5 {[%clk 0:00:21.3]} 34. Rd3 {[%clk 0:00:18.8]} 34... Qg7 {[%clk
0:00:20.6]} 35. Rd7 {[%clk 0:00:18.3]} 35... Qf6 {[%clk 0:00:19.8]} 36. Qd2
{[%clk 0:00:17.1]} 36... Ng7 {[%clk 0:00:19.9]} 37. Rd6 {[%clk 0:00:15.8]} 37...
Qh4+ {[%clk 0:00:20]} 38. Kg2 {[%clk 0:00:14]} 38... Qg4+ {[%clk 0:00:20.1]} 39.
Kf2 {[%clk 0:00:13.9]} 39... Qh4+ {[%clk 0:00:20.5]} 40. Kg2 {[%clk 0:00:14.3]}
40... Qg4+ {[%clk 0:00:17.2]} 41. Kf2 {[%clk 0:00:14.3]} 41... Rg8 {[%clk
0:00:17.2]} 42. Rd8 {[%clk 0:00:13.7]} 42... Qh4+ {[%clk 0:00:17.4]} 43. Ke2
{[%clk 0:00:14]} 43... Rxd8 {[%clk 0:00:17.9]} 44. Qb2 {[%clk 0:00:13.8]} 44...
Qxh2+ {[%clk 0:00:17.8]} 0-1

[Event "Late-Titled-Tuesday-Blitz-September-05-2023"]
[Site "Chess.com"]
[Date "2023.09.05"]
[Round "2"]
[White "Tsyhanchuk_Stanislav"]
[Black "PassedPawnMustPushed"]
[Result "1-0"]
[WhiteElo "2422"]
[BlackElo "2131"]
[TimeControl "180+1"]
[EndTime "14:18:17 PDT"]
[Termination "Tsyhanchuk_Stanislav won on time"]

1. e4 {[%clk 0:03:00.9]} 1... Nf6 {[%clk 0:02:59.9]} 2. e5 {[%clk 0:03:00.4]}
2... Ng8 {[%clk 0:03:00.6]} 3. d4 {[%clk 0:02:57.3]} 3... d6 {[%clk 0:03:01.1]}
4. f4 {[%clk 0:02:56.6]} 4... h5 {[%clk 0:03:00.6]} 5. Nf3 {[%clk 0:02:55.2]}
5... Bg4 {[%clk 0:03:00.6]} 6. c3 {[%clk 0:02:50]} 6... e6 {[%clk 0:03:00.4]} 7.
Be3 {[%clk 0:02:49.6]} 7... Nh6 {[%clk 0:02:57.7]} 8. h3 {[%clk 0:02:43.3]} 8...
Nf5 {[%clk 0:02:54.7]} 9. Bf2 {[%clk 0:02:40.9]} 9... Bxf3 {[%clk 0:02:54.4]}
10. Qxf3 {[%clk 0:02:40.9]} 10... d5 {[%clk 0:02:55.1]} 11. Bd3 {[%clk
0:02:38.4]} 11... g6 {[%clk 0:02:53.5]} 12. g4 {[%clk 0:02:19]} 12... Nh4 {[%clk
0:02:41.9]} 13. Qg3 {[%clk 0:02:08.6]} 13... Be7 {[%clk 0:02:41.9]} 14. Nd2
{[%clk 0:01:56.7]} 14... c5 {[%clk 0:02:41.3]} 15. O-O-O {[%clk 0:01:55]} 15...
c4 {[%clk 0:02:40.3]} 16. Bc2 {[%clk 0:01:52.6]} 16... Nc6 {[%clk 0:02:33.6]}
17. Nf3 {[%clk 0:01:45.3]} 17... Nxf3 {[%clk 0:02:31.9]} 18. Qxf3 {[%clk
0:01:46.2]} 18... Qa5 {[%clk 0:02:30.3]} 19. f5 {[%clk 0:01:35.1]} 19... gxf5
{[%clk 0:02:26.7]} 20. gxf5 {[%clk 0:01:34.9]} 20... Qxa2 {[%clk 0:02:24.8]} 21.
fxe6 {[%clk 0:01:32.9]} 21... fxe6 {[%clk 0:02:23.4]} 22. Be3 {[%clk 0:01:13.1]}
22... Kd7 {[%clk 0:02:11.7]} 23. Rhg1 {[%clk 0:01:08.2]} 23... Raf8 {[%clk
0:02:10.4]} 24. Qe2 {[%clk 0:01:08.4]} 24... b5 {[%clk 0:01:50]} 25. Kd2 {[%clk
0:01:00]} 25... b4 {[%clk 0:01:36.5]} 26. Rb1 {[%clk 0:00:43.2]} 26... b3 {[%clk
0:01:29.5]} 27. Bg6 {[%clk 0:00:41.6]} 27... Ba3 {[%clk 0:01:14.7]} 28. Kc1
{[%clk 0:00:32]} 28... Rhg8 {[%clk 0:00:57]} 29. Bxh5 {[%clk 0:00:30.4]} 29...
Rxg1+ {[%clk 0:00:22.1]} 30. Bxg1 {[%clk 0:00:31.3]} 30... Be7 {[%clk 0:00:19]}
31. Be3 {[%clk 0:00:27.6]} 31... a5 {[%clk 0:00:17.4]} 32. Qd1 {[%clk
0:00:09.5]} 32... a4 {[%clk 0:00:15.8]} 33. Kd2 {[%clk 0:00:08.2]} 33... a3
{[%clk 0:00:16.4]} 34. Ke1 {[%clk 0:00:08.1]} 34... axb2 {[%clk 0:00:15.8]} 35.
Bg4 {[%clk 0:00:05.9]} 35... Nb4 {[%clk 0:00:08.2]} 36. Ke2 {[%clk 0:00:04.2]}
36... Nd3 {[%clk 0:00:07]} 37. Kd2 {[%clk 0:00:03.6]} 37... Qa5 {[%clk
0:00:03.8]} 38. Be2 {[%clk 0:00:03.7]} 38... Bb4 {[%clk 0:00:03.4]} 39. Bxd3
{[%clk 0:00:04.1]} 39... Bxc3+ {[%clk 0:00:04]} 40. Ke2 {[%clk 0:00:04.6]} 40...
cxd3+ {[%clk 0:00:03.9]} 41. Qxd3 {[%clk 0:00:05.2]} 41... Qa1 {[%clk
0:00:01.9]} 42. Bd2 {[%clk 0:00:04.6]} 42... Bxd2 {[%clk 0:00:01.2]} 43. Kxd2
{[%clk 0:00:05.5]} 43... Qa5+ {[%clk 0:00:01.2]} 44. Ke2 {[%clk 0:00:05.5]} 1-0

[Event "Late-Titled-Tuesday-Blitz-September-05-2023"]
[Site "Chess.com"]
[Date "2023.09.05"]
[Round "2"]
[White "GP9isback23"]
[Black "sebastianmarinp"]
[Result "1-0"]
[WhiteElo "2672"]
[BlackElo "2407"]
[TimeControl "180+1"]
[EndTime "14:18:21 PDT"]
[Termination "GP9isback23 won on time"]

1. d4 {[%clk 0:03:00.1]} 1... d5 {[%clk 0:02:58.8]} 2. Nf3 {[%clk 0:03:00.2]}
2... Nf6 {[%clk 0:02:58.1]} 3. e3 {[%clk 0:03:00.2]} 3... c5 {[%clk 0:02:55.2]}
4. Be2 {[%clk 0:02:59.2]} 4... cxd4 {[%clk 0:02:54]} 5. exd4 {[%clk 0:02:59.2]}
5... Nc6 {[%clk 0:02:54.1]} 6. c3 {[%clk 0:02:59.7]} 6... Bf5 {[%clk 0:02:53.2]}
7. O-O {[%clk 0:03:00.2]} 7... e6 {[%clk 0:02:53.1]} 8. Bg5 {[%clk 0:03:00.8]}
8... Be7 {[%clk 0:02:52.6]} 9. Nbd2 {[%clk 0:03:01.4]} 9... O-O {[%clk
0:02:52.1]} 10. Re1 {[%clk 0:03:01.2]} 10... Ne4 {[%clk 0:02:51.1]} 11. Bxe7
{[%clk 0:02:58.5]} 11... Nxe7 {[%clk 0:02:48.8]} 12. Nxe4 {[%clk 0:02:58.1]}
12... Bxe4 {[%clk 0:02:49.6]} 13. Nd2 {[%clk 0:02:58.1]} 13... Bg6 {[%clk
0:02:48]} 14. Qb3 {[%clk 0:02:54.9]} 14... Qd7 {[%clk 0:02:37.7]} 15. a4 {[%clk
0:02:54.4]} 15... Nf5 {[%clk 0:02:31.5]} 16. a5 {[%clk 0:02:52.4]} 16... Nd6
{[%clk 0:02:29.5]} 17. Ra4 {[%clk 0:02:46.7]} 17... Rac8 {[%clk 0:02:20.4]} 18.
Rb4 {[%clk 0:02:46]} 18... Rc7 {[%clk 0:02:16.9]} 19. Bf1 {[%clk 0:02:43.3]}
19... Rfc8 {[%clk 0:02:14.7]} 20. Nf3 {[%clk 0:02:34.5]} 20... f6 {[%clk
0:02:10.6]} 21. Ra4 {[%clk 0:02:17.8]} 21... Ne4 {[%clk 0:02:02.1]} 22. Raa1
{[%clk 0:02:12.6]} 22... Bh5 {[%clk 0:01:56.6]} 23. Be2 {[%clk 0:02:12.7]} 23...
Bxf3 {[%clk 0:01:52.4]} 24. Bxf3 {[%clk 0:02:11.3]} 24... Nd2 {[%clk 0:01:52.3]}
25. Qd1 {[%clk 0:02:11.8]} 25... Nxf3+ {[%clk 0:01:50.9]} 26. Qxf3 {[%clk
0:02:12.7]} 26... Qd6 {[%clk 0:01:33]} 27. a6 {[%clk 0:02:01.3]} 27... bxa6
{[%clk 0:01:28]} 28. Qd3 {[%clk 0:02:01]} 28... Rc6 {[%clk 0:01:26.5]} 29. Ra2
{[%clk 0:01:57.3]} 29... Rb8 {[%clk 0:01:23.8]} 30. Rea1 {[%clk 0:01:57.3]}
30... Rbb6 {[%clk 0:01:11.2]} 31. g3 {[%clk 0:01:56]} 31... e5 {[%clk
0:01:04.9]} 32. dxe5 {[%clk 0:01:55.8]} 32... fxe5 {[%clk 0:01:05.8]} 33. Ra5
{[%clk 0:01:55]} 33... d4 {[%clk 0:00:57.7]} 34. Re1 {[%clk 0:01:35.3]} 34...
dxc3 {[%clk 0:00:50.1]} 35. Qxd6 {[%clk 0:01:34.9]} 35... Rxd6 {[%clk 0:00:51]}
36. bxc3 {[%clk 0:01:35.4]} 36... Rb5 {[%clk 0:00:31.1]} 37. Rxe5 {[%clk
0:01:32.9]} 37... Rxe5 {[%clk 0:00:28.7]} 38. Rxe5 {[%clk 0:01:32.5]} 38... Rc6
{[%clk 0:00:27.8]} 39. Ra5 {[%clk 0:01:32.7]} 39... Rxc3 {[%clk 0:00:26.3]} 40.
Rxa6 {[%clk 0:01:33]} 40... Rc7 {[%clk 0:00:26.7]} 41. Rd6 {[%clk 0:01:29.5]}
41... a5 {[%clk 0:00:20.5]} 42. Rd8+ {[%clk 0:01:29.6]} 42... Kf7 {[%clk
0:00:20.5]} 43. Ra8 {[%clk 0:01:30.5]} 43... Rc5 {[%clk 0:00:20.6]} 44. Kg2
{[%clk 0:01:30.2]} 44... h6 {[%clk 0:00:20]} 45. h4 {[%clk 0:01:30.4]} 45... Kg6
{[%clk 0:00:18]} 46. g4 {[%clk 0:01:30.4]} 46... Rc4 {[%clk 0:00:14.3]} 47. Kg3
{[%clk 0:01:28.2]} 47... a4 {[%clk 0:00:13.2]} 48. f3 {[%clk 0:01:27.5]} 48...
Rb4 {[%clk 0:00:13.5]} 49. Ra7 {[%clk 0:01:22.9]} 49... Rc4 {[%clk 0:00:13.4]}
50. h5+ {[%clk 0:01:22]} 50... Kh7 {[%clk 0:00:12.6]} 51. Kf2 {[%clk 0:01:21.8]}
51... Rb4 {[%clk 0:00:12.9]} 52. Ke3 {[%clk 0:01:21.6]} 52... Rc4 {[%clk
0:00:13]} 53. Kd3 {[%clk 0:01:20.5]} 53... Rb4 {[%clk 0:00:13.4]} 54. Ke2 {[%clk
0:01:20.7]} 54... Rc4 {[%clk 0:00:13.5]} 55. Kf2 {[%clk 0:01:20.7]} 55... Rb4
{[%clk 0:00:13.9]} 56. Kg3 {[%clk 0:01:21.4]} 56... Rc4 {[%clk 0:00:14.1]} 57.
Ra5 {[%clk 0:01:17.7]} 57... Rb4 {[%clk 0:00:14.1]} 58. Ra8 {[%clk 0:01:11.7]}
58... Rc4 {[%clk 0:00:14]} 59. f4 {[%clk 0:01:09.2]} 59... Rb4 {[%clk
0:00:13.8]} 60. g5 {[%clk 0:01:05.1]} 60... hxg5 {[%clk 0:00:13.2]} 61. fxg5
{[%clk 0:01:06]} 61... Rc4 {[%clk 0:00:11.6]} 62. Ra7 {[%clk 0:01:03.1]} 62...
Rb4 {[%clk 0:00:09]} 63. h6 {[%clk 0:01:02.7]} 63... Kh8 {[%clk 0:00:04.2]} 64.
Rxg7 {[%clk 0:00:57.4]} 64... a3 {[%clk 0:00:02.5]} 65. Ra7 {[%clk 0:00:55.8]}
1-0

[Event "Late-Titled-Tuesday-Blitz-September-05-2023"]
[Site "Chess.com"]
[Date "2023.09.05"]
[Round "2"]
[White "egnfanclub"]
[Black "Michalczak"]
[Result "0-1"]
[WhiteElo "2307"]
[BlackElo "2506"]
[TimeControl "180+1"]
[EndTime "14:18:22 PDT"]
[Termination "Michalczak won on time"]

1. e4 {[%clk 0:03:00.9]} 1... e5 {[%clk 0:02:59.6]} 2. Nf3 {[%clk 0:02:59.8]}
2... Nc6 {[%clk 0:03:00]} 3. d4 {[%clk 0:02:58.9]} 3... exd4 {[%clk 0:02:59.1]}
4. Nxd4 {[%clk 0:02:59.8]} 4... Nf6 {[%clk 0:02:59.3]} 5. Nc3 {[%clk 0:02:59.6]}
5... Bb4 {[%clk 0:02:58.6]} 6. Nxc6 {[%clk 0:02:58.1]} 6... bxc6 {[%clk
0:02:58.8]} 7. Bd2 {[%clk 0:02:57.9]} 7... O-O {[%clk 0:02:55.9]} 8. Bd3 {[%clk
0:02:54.7]} 8... Re8 {[%clk 0:02:55.5]} 9. O-O {[%clk 0:02:53.7]} 9... d6 {[%clk
0:02:55.2]} 10. Qf3 {[%clk 0:02:46.7]} 10... Ng4 {[%clk 0:02:52.6]} 11. Qg3
{[%clk 0:02:42.1]} 11... Bc5 {[%clk 0:02:39.6]} 12. h3 {[%clk 0:02:31.9]} 12...
Ne5 {[%clk 0:02:38.7]} 13. Bg5 {[%clk 0:02:16.5]} 13... Qd7 {[%clk 0:02:34.1]}
14. Bh6 {[%clk 0:02:01.1]} 14... Ng6 {[%clk 0:02:33.9]} 15. Be3 {[%clk 0:01:58]}
15... Bxe3 {[%clk 0:02:33.5]} 16. fxe3 {[%clk 0:01:58.9]} 16... Rb8 {[%clk
0:02:33.2]} 17. b3 {[%clk 0:01:58.6]} 17... Qe7 {[%clk 0:02:26.9]} 18. Ne2
{[%clk 0:01:41.2]} 18... Ne5 {[%clk 0:02:23.9]} 19. Nf4 {[%clk 0:01:39]} 19...
Kh8 {[%clk 0:02:21.7]} 20. Rf2 {[%clk 0:01:24.4]} 20... Be6 {[%clk 0:02:11.8]}
21. Rd1 {[%clk 0:01:15]} 21... a5 {[%clk 0:02:09.3]} 22. a4 {[%clk 0:01:13.1]}
22... f6 {[%clk 0:01:44.5]} 23. Rfd2 {[%clk 0:01:02.1]} 23... Bf7 {[%clk
0:01:40.7]} 24. Be2 {[%clk 0:01:00.7]} 24... Bg6 {[%clk 0:01:34.9]} 25. Bf3
{[%clk 0:00:57.7]} 25... Rb4 {[%clk 0:01:33.9]} 26. Rd4 {[%clk 0:00:53]} 26...
Rbb8 {[%clk 0:01:31.1]} 27. h4 {[%clk 0:00:47.8]} 27... Bf7 {[%clk 0:01:29.7]}
28. h5 {[%clk 0:00:47.7]} 28... h6 {[%clk 0:01:29.1]} 29. Ng6+ {[%clk
0:00:45.2]} 29... Bxg6 {[%clk 0:01:28.2]} 30. hxg6 {[%clk 0:00:46.1]} 30... Red8
{[%clk 0:01:07.2]} 31. Bg4 {[%clk 0:00:46.1]} 31... Nxg6 {[%clk 0:01:03.4]} 32.
Bf5 {[%clk 0:00:46.7]} 32... Ne5 {[%clk 0:01:01]} 33. Kf2 {[%clk 0:00:43.8]}
33... g6 {[%clk 0:00:45.4]} 34. Rh1 {[%clk 0:00:43]} 34... Kg7 {[%clk
0:00:40.8]} 35. Qh4 {[%clk 0:00:27.6]} 35... Rh8 {[%clk 0:00:39.5]} 36. Bh3
{[%clk 0:00:23.9]} 36... Rbf8 {[%clk 0:00:38.3]} 37. Ke2 {[%clk 0:00:15.9]}
37... Qf7 {[%clk 0:00:37.9]} 38. Rdd1 {[%clk 0:00:14]} 38... g5 {[%clk
0:00:34.5]} 39. Qf2 {[%clk 0:00:12.8]} 39... g4 {[%clk 0:00:32]} 40. Qg3 {[%clk
0:00:13.1]} 40... h5 {[%clk 0:00:29.2]} 41. Rdf1 {[%clk 0:00:13]} 41... Qg6
{[%clk 0:00:28.4]} 42. Qf4 {[%clk 0:00:08.5]} 42... Qg5 {[%clk 0:00:19.5]} 43.
Qf2 {[%clk 0:00:06.4]} 43... Kf7 {[%clk 0:00:15.3]} 44. Rhg1 {[%clk 0:00:06.6]}
44... Ke7 {[%clk 0:00:15.4]} 45. g3 {[%clk 0:00:06.7]} 45... gxh3 {[%clk
0:00:15.6]} 46. Rh1 {[%clk 0:00:06.5]} 46... Qg4+ {[%clk 0:00:15.9]} 47. Kd2
{[%clk 0:00:06.3]} 47... Rh6 {[%clk 0:00:16.2]} 48. Rh2 {[%clk 0:00:04]} 48...
Rg6 {[%clk 0:00:15.5]} 49. Kc1 {[%clk 0:00:01.5]} 49... Qxg3 {[%clk 0:00:14.6]}
0-1

[Event "Late-Titled-Tuesday-Blitz-September-05-2023"]
[Site "Chess.com"]
[Date "2023.09.05"]
[Round "2"]
[White "Doudou2015"]
[Black "Chessdude1987"]
[Result "1-0"]
[WhiteElo "2186"]
[BlackElo "2423"]
[TimeControl "180+1"]
[EndTime "14:18:22 PDT"]
[Termination "Doudou2015 won on time"]

1. b3 {[%clk 0:03:00]} 1... e5 {[%clk 0:02:59]} 2. Bb2 {[%clk 0:03:00.8]} 2...
d6 {[%clk 0:02:59.1]} 3. e3 {[%clk 0:03:00.6]} 3... f5 {[%clk 0:02:58.8]} 4. d4
{[%clk 0:02:59.8]} 4... e4 {[%clk 0:02:58.1]} 5. d5 {[%clk 0:03:00]} 5... Nf6
{[%clk 0:02:57]} 6. c4 {[%clk 0:02:56.8]} 6... Be7 {[%clk 0:02:55.7]} 7. g3
{[%clk 0:02:39.5]} 7... a5 {[%clk 0:02:50.9]} 8. a3 {[%clk 0:02:39.6]} 8... Nbd7
{[%clk 0:02:45]} 9. Ne2 {[%clk 0:02:33.5]} 9... Ne5 {[%clk 0:02:45.1]} 10. Nd4
{[%clk 0:02:30.3]} 10... c6 {[%clk 0:02:37.8]} 11. dxc6 {[%clk 0:02:28.5]} 11...
bxc6 {[%clk 0:02:37.8]} 12. Be2 {[%clk 0:02:22.3]} 12... O-O {[%clk 0:02:34.2]}
13. O-O {[%clk 0:02:19.7]} 13... Kh8 {[%clk 0:02:28.3]} 14. Nd2 {[%clk
0:02:09.6]} 14... Qd7 {[%clk 0:02:11.9]} 15. f4 {[%clk 0:01:58.5]} 15... exf3
{[%clk 0:01:54.7]} 16. N2xf3 {[%clk 0:01:56.6]} 16... Neg4 {[%clk 0:01:53.9]}
17. Qd3 {[%clk 0:01:48.2]} 17... c5 {[%clk 0:01:50.4]} 18. Nb5 {[%clk
0:01:39.6]} 18... Bb7 {[%clk 0:01:47.2]} 19. Ng5 {[%clk 0:01:29]} 19... Ne5
{[%clk 0:01:43.8]} 20. Qd1 {[%clk 0:01:18.9]} 20... Qc6 {[%clk 0:01:38.7]} 21.
Nf3 {[%clk 0:01:15.1]} 21... Neg4 {[%clk 0:01:35.7]} 22. Qd3 {[%clk 0:01:06.7]}
22... Ne4 {[%clk 0:01:27.9]} 23. a4 {[%clk 0:00:47]} 23... Rad8 {[%clk 0:01:27]}
24. Rae1 {[%clk 0:00:42.2]} 24... Bf6 {[%clk 0:01:20.3]} 25. Bxf6 {[%clk
0:00:40.7]} 25... Rxf6 {[%clk 0:01:20.1]} 26. Bd1 {[%clk 0:00:34.8]} 26... Rff8
{[%clk 0:01:15.6]} 27. Nc3 {[%clk 0:00:27.4]} 27... Nxc3 {[%clk 0:01:01.8]} 28.
Qxc3 {[%clk 0:00:28.3]} 28... Rde8 {[%clk 0:00:54.1]} 29. h3 {[%clk 0:00:24.8]}
29... Ne5 {[%clk 0:00:48]} 30. Kh2 {[%clk 0:00:18.3]} 30... Qe4 {[%clk
0:00:38.3]} 31. Be2 {[%clk 0:00:14.7]} 31... Ba8 {[%clk 0:00:26.7]} 32. Rf2
{[%clk 0:00:14.8]} 32... Ng6 {[%clk 0:00:22.4]} 33. Bd1 {[%clk 0:00:12.2]} 33...
Qe7 {[%clk 0:00:17.2]} 34. h4 {[%clk 0:00:11.6]} 34... Ne5 {[%clk 0:00:15.6]}
35. Ng5 {[%clk 0:00:11.1]} 35... h6 {[%clk 0:00:12.5]} 36. Nh3 {[%clk
0:00:11.2]} 36... Ng4+ {[%clk 0:00:11.7]} 37. Bxg4 {[%clk 0:00:11.4]} 37... fxg4
{[%clk 0:00:12.2]} 38. Nf4 {[%clk 0:00:11.9]} 38... Qf6 {[%clk 0:00:04.8]} 39.
Qd3 {[%clk 0:00:10.7]} 39... Be4 {[%clk 0:00:03.9]} 40. Qd2 {[%clk 0:00:08.6]}
40... Bf3 {[%clk 0:00:04]} 41. Rxf3 {[%clk 0:00:08.1]} 41... gxf3 {[%clk
0:00:02.6]} 42. Qd3 {[%clk 0:00:09]} 1-0